[Event "CZE-ch U16 2020"]
[Site "Kouty nad Desnou"]
[Date "2020.03.07"]
[Round "1.1"]
[White "Vojta, Jakub"]
[Black "Hosnedl, Matyas"]
[Result "1-0"]
[ECO "B13"]
[WhiteElo "2214"]
[BlackElo "1977"]
[Annotator "ChessBase"]
[PlyCount "79"]
[EventDate "2020.03.07"]
[EventCountry "CZE"]
[SourceTitle "playchess.com"]
[Source "ChessBase"]
[SourceQuality "1"]
[TimeControl "5400+30"]

1. e4 {[%emt 0:00:00]} c6 {[%emt 0:00:00]} 2. d4 {[%emt 0:00:00]} d5 {[%emt 0:00:01]} 3. exd5 {[%emt 0:00:49]} cxd5 {[%emt 0:00:11]} 4. Bd3 {[%emt 0:00:05]} Nf6 {[%emt 0:00:12]} 5. c3 {[%emt 0:00:19]} Qc7 {[%emt 0:00:36]} 6. h3 {[%emt 0:02:35]} g6 {[%emt 0:00:44]} 7. Qc2 {[%emt 0:07:29]} Nc6 {[%emt 0:01:32]} 8. Ne2 {[%emt 0:03:06]} Bg7 {[%emt 0:06:30]} 9. Bf4 {[%emt 0:01:15]} e5 {[%emt 0:01:21]} 10. dxe5 {[%emt 0:01:19]} Nh5 {[%emt 0:07:10]} 11. Be3 {[%emt 0:05:50]} Nxe5 {[%emt 0:01:45]} 12. Bb5+ {[%emt 0:01:08]} Bd7 {[%emt 0:02:54]} 13. Bxd7+ {[%emt 0:12:08]} Qxd7 {[%emt 0:00:54]} 14. O-O {[%emt 0:00:47]} O-O {[%emt 0:00:20]} 15. Nd2 {[%emt 0:01:53]} Rfd8 {[%emt 0:01:35]} 16. Rad1 {[%emt 0:02:06]} Rac8 {[%emt 0:04:59]} 17. Nb3 {[%emt 0:06:34]} b5 {[%emt 0:02:25]} 18. a3 {[%emt 0:04:39]} Nc4 {[%emt 0:05:16]} 19. Bd4 {[%emt 0:00:39]} a5 {[%emt 0:02:31]} 20. Bxg7 {[%emt 0:01:12]} Nxg7 {[%emt 0:00:24]} 21. Nf4 {[%emt 0:01:10]} Qf5 {[%emt 0:00:57]} 22. Qxf5 {[%emt 0:09:06]} Nxf5 {[%emt 0:00:54]} 23. g4 {[%emt 0:03:27]} Ne7 {[%emt 0:04:38]} 24. Rfe1 {[%emt 0:01:30]} Nc6 {[%emt 0:06:54]} 25. Re2 {[%emt 0:01:25]} Nb6 {[%emt 0:08:52]} 26. Red2 {[%emt 0:09:34]} a4 {[%emt 0:09:21]} 27. Nd4 {[%emt 0:02:05]} Nxd4 {[%emt 0:00:09]} 28. Rxd4 {[%emt 0:00:08]} Rc4 {[%emt 0:04:29]} 29. Rxc4 {[%emt 0:03:59]} bxc4 {[%emt 0:06:25]} 30. g5 {[%emt 0:02:47]} Kf8 {[%emt 0:01:46]} 31. f3 {[%emt 0:01:03]} Ke7 {[%emt 0:01:13]} 32. Kf2 {[%emt 0:00:38]} Kd6 {[%emt 0:02:13]} 33. h4 {[%emt 0:04:25]} Re8 {[%emt 0:04:08]} 34. Ng2 {[%emt 0:01:44]} h6 {[%emt 0:04:34]} 35. Rd4 {[%emt 0:05:18]} hxg5 {[%emt 0:00:45]} 36. hxg5 {[%emt 0:00:02]} Rh8 {[%emt 0:00:45]} 37. Rf4 {[%emt 0:01:27]} f5 {[%emt 0:05:34]} 38. gxf6 {[%emt 0:00:40]} Rf8 {[%emt 0:01:26]} 39. Ne3 {[%emt 0:01:09]} Nd7 {[%emt 0:01:01]} 40. Rd4 {[%emt 0:01:23]} 1-0

[Event "CZE-ch U16 2020"]
[Site "Kouty nad Desnou"]
[Date "2020.03.07"]
[Round "1.2"]
[White "Habenicht, Martin"]
[Black "Frank, Adam"]
[Result "0-1"]
[ECO "A88"]
[WhiteElo "1970"]
[BlackElo "2196"]
[Annotator "ChessBase"]
[PlyCount "106"]
[EventDate "2020.03.07"]
[EventCountry "CZE"]
[SourceTitle "playchess.com"]
[Source "ChessBase"]
[SourceQuality "1"]
[TimeControl "5400+30"]

1. d4 {[%emt 0:00:00]} d6 {[%emt 0:00:00]} 2. Nf3 {[%emt 0:00:07]} g6 {[%emt 0:00:00]} 3. g3 {[%emt 0:00:21]} Bg7 {[%emt 0:00:00]} 4. Bg2 {[%emt 0:00:20]} f5 {[%emt 0:00:13]} 5. c4 {[%emt 0:00:56]} Nf6 6. Nc3 {[%emt 0:00:47]} O-O {[%emt 0:00:10]} 7. O-O {[%emt 0:00:42]} c6 {[%emt 0:05:08]} 8. d5 {[%emt 0:06:26]} cxd5 {[%emt 0:22:17]} 9. cxd5 {[%emt 0:00:21]} Na6 {[%emt 0:00:24]} 10. Be3 {[%emt 0:04:10]} Bd7 {[%emt 0:05:58]} 11. Rc1 {[%emt 0:08:12]} h6 {[%emt 0:09:57]} 12. Bd4 {[%emt 0:15:27]} g5 {[%emt 0:09:33]} 13. a4 {[%emt 0:05:42]} Qa5 {[%emt 0:06:31]} 14. Qb3 {[%emt 0:05:54]} Nc5 {[%emt 0:05:45]} 15. Bxc5 {[%emt 0:02:34]} Qxc5 {[%emt 0:00:08]} 16. Ne4 {[%emt 0:11:15]} Qa5 {[%emt 0:00:49]} 17. Nxf6+ {[%emt 0:00:22]} Bxf6 {[%emt 0:00:04]} 18. Qxb7 {[%emt 0:02:13]} Bxa4 {[%emt 0:00:23]} 19. b4 {[%emt 0:02:35]} Qb6 {[%emt 0:03:14]} 20. Qxb6 {[%emt 0:02:36]} axb6 {[%emt 0:00:01]} 21. Nd2 {[%emt 0:03:03]} Bb5 {[%emt 0:04:59]} 22. Nc4 {[%emt 0:05:15]} Bxc4 {[%emt 0:06:30]} 23. Rxc4 {[%emt 0:00:04]} Ra2 {[%emt 0:01:00]} 24. e3 {[%emt 0:01:30]} Rb2 {[%emt 0:00:58]} 25. Rfc1 {[%emt 0:01:29]} Ra8 {[%emt 0:03:10]} 26. Rc8+ {[%emt 0:00:19]} Rxc8 {[%emt 0:00:03]} 27. Rxc8+ {[%emt 0:00:02]} Kf7 {[%emt 0:00:05]} 28. Bf1 {[%emt 0:04:01]} Rxb4 {[%emt 0:00:23]} 29. Bd3 {[%emt 0:02:33]} f4 {[%emt 0:00:58]} 30. exf4 {[%emt 0:06:47]} gxf4 {[%emt 0:00:05]} 31. Kg2 {[%emt 0:02:08]} Rd4 {[%emt 0:02:39]} 32. Bc2 {[%emt 0:02:00]} Rd2 {[%emt 0:00:35]} 33. Be4 {[%emt 0:02:49]} fxg3 {[%emt 0:02:24]} 34. hxg3 {[%emt 0:00:32]} b5 {[%emt 0:00:44]} 35. Rc2 {[%emt 0:01:04]} Rd4 {[%emt 0:00:07]} 36. f3 {[%emt 0:01:36]} b4 {[%emt 0:00:15]} 37. Rc1 {[%emt 0:01:12]} b3 {[%emt 0:01:02]} 38. Kf2 {[%emt 0:00:47]} b2 {[%emt 0:00:41]} 39. Re1 {[%emt 0:00:47]} Be5 {[%emt 0:02:54]} 40. Bb1 {[%emt 0:00:27]} Rd2+ {[%emt 0:00:10]} 41. Ke3 {[%emt 0:00:00]} Rg2 {[%emt 0:00:00]} 42. g4 {[%emt 0:00:00]} Rh2 {[%emt 0:00:00]} 43. Rd1 {[%emt 0:00:00]} Kf6 {[%emt 0:00:00]} 44. f4 {[%emt 0:00:00]} Bc3 {[%emt 0:00:00]} 45. Kd3 {[%emt 0:00:00]} Bb4 {[%emt 0:00:00]} 46. Ke3 {[%emt 0:00:30]} Ba5 {[%emt 0:00:00]} 47. Be4 {[%emt 0:01:48]} Bb6+ {[%emt 0:00:00]} 48. Kd3 {[%emt 0:00:23]} Rf2 {[%emt 0:00:00]} 49. Rh1 {[%emt 0:00:57]} Rxf4 {[%emt 0:00:00]} 50. Rxh6+ {[%emt 0:00:02]} Kg5 {[%emt 0:00:00]} 51. Rg6+ {[%emt 0:00:41]} Kh4 {[%emt 0:00:00]} 52. Rh6+ {[%emt 0:00:04]} Kxg4 {[%emt 0:00:00]} 53. Rg6+ {[%emt 0:00:51]} Kh5 {[%emt 0:00:00]} 0-1

[Event "CZE-ch U16 2020"]
[Site "Kouty nad Desnou"]
[Date "2020.03.07"]
[Round "1.3"]
[White "Placer, Sebastian"]
[Black "Krizek, Krystof"]
[Result "1-0"]
[ECO "A18"]
[WhiteElo "2189"]
[BlackElo "1947"]
[Annotator "ChessBase"]
[PlyCount "85"]
[EventDate "2020.03.07"]
[EventCountry "CZE"]
[SourceTitle "playchess.com"]
[Source "ChessBase"]
[SourceQuality "1"]
[TimeControl "5400+30"]

1. c4 {[%emt 0:00:00]} Nf6 {[%emt 0:00:57]} 2. Nc3 {[%emt 0:00:00]} e6 {[%emt 0:01:40]} 3. e4 {[%emt 0:00:23]} d5 {[%emt 0:03:55]} 4. e5 {[%emt 0:00:27]} d4 {[%emt 0:17:07]} 5. exf6 {[%emt 0:01:54]} dxc3 {[%emt 0:00:06]} 6. bxc3 {[%emt 0:00:16]} Qxf6 {[%emt 0:00:48]} 7. d4 {[%emt 0:00:26]} b6 {[%emt 0:04:48]} 8. Be2 {[%emt 0:04:21]} Bb7 {[%emt 0:00:40]} 9. Bf3 {[%emt 0:00:23]} Bxf3 {[%emt 0:01:08]} 10. Nxf3 {[%emt 0:00:13]} Nd7 {[%emt 0:02:08]} 11. Qa4 {[%emt 0:03:58]} Qd8 {[%emt 0:05:48]} 12. Qc6 {[%emt 0:22:29]} Bd6 {[%emt 0:03:54]} 13. c5 {[%emt 0:18:37]} bxc5 {[%emt 0:02:19]} 14. dxc5 {[%emt 0:00:32]} Bxc5 {[%emt 0:04:35]} 15. Ne5 {[%emt 0:02:55]} Rb8 {[%emt 0:21:18]} 16. Nxd7 {[%emt 0:01:39]} Bxf2+ {[%emt 0:00:12]} 17. Kxf2 {[%emt 0:00:47]} Qxd7 {[%emt 0:00:36]} 18. Qxd7+ {[%emt 0:00:05]} Kxd7 {[%emt 0:00:04]} 19. Ba3 {[%emt 0:00:13]} Kc6 {[%emt 0:03:18]} 20. Rab1 {[%emt 0:00:22]} Rxb1 {[%emt 0:03:46]} 21. Rxb1 {[%emt 0:00:21]} Rd8 {[%emt 0:00:01]} 22. Ke2 {[%emt 0:00:39]} Rd5 {[%emt 0:00:11]} 23. Bc1 {[%emt 0:01:40]} Ra5 {[%emt 0:02:25]} 24. Rb2 {[%emt 0:00:57]} Kd5 {[%emt 0:00:54]} 25. Kd3 {[%emt 0:01:04]} e5 {[%emt 0:01:24]} 26. c4+ {[%emt 0:01:34]} Ke6 {[%emt 0:00:08]} 27. Kc3 {[%emt 0:05:08]} f5 {[%emt 0:01:40]} 28. Kb4 {[%emt 0:02:36]} Ra6 {[%emt 0:00:20]} 29. Be3 {[%emt 0:00:32]} f4 {[%emt 0:01:06]} 30. Bc5 {[%emt 0:03:48]} Kf5 {[%emt 0:00:23]} 31. Kb5 {[%emt 0:00:23]} Rh6 {[%emt 0:02:20]} 32. Bxa7 {[%emt 0:01:26]} Rxh2 {[%emt 0:01:10]} 33. a4 {[%emt 0:01:47]} Ke6 {[%emt 0:06:07]} 34. Bg1 {[%emt 0:03:17]} Rh1 {[%emt 0:00:31]} 35. Bc5 {[%emt 0:00:12]} e4 {[%emt 0:01:33]} 36. a5 {[%emt 0:00:40]} e3 {[%emt 0:01:06]} 37. a6 {[%emt 0:00:50]} Kd7 {[%emt 0:00:06]} 38. a7 {[%emt 0:03:04]} Ra1 {[%emt 0:00:05]} 39. Bd4 {[%emt 0:01:41]} c5 {[%emt 0:02:53]} 40. Bxc5 {[%emt 0:00:51]} Kc8 {[%emt 0:00:05]} 41. Kc6 {[%emt 0:00:29]} Ra6+ {[%emt 0:00:05]} 42. Kd5 {[%emt 0:00:07]} Kd7 {[%emt 0:00:29]} 43. Rb7+ {[%emt 0:00:07]} 1-0

[Event "CZE-ch U16 2020"]
[Site "Kouty nad Desnou"]
[Date "2020.03.07"]
[Round "1.4"]
[White "Nezval, Filip"]
[Black "Kusa, Jakub"]
[Result "1/2-1/2"]
[ECO "D35"]
[WhiteElo "1940"]
[BlackElo "2188"]
[Annotator "ChessBase"]
[PlyCount "86"]
[EventDate "2020.03.07"]
[EventCountry "CZE"]
[SourceTitle "playchess.com"]
[Source "ChessBase"]
[SourceQuality "1"]
[TimeControl "5400+30"]

1. d4 {[%emt 0:00:00]} Nf6 {[%emt 0:00:00]} 2. c4 {[%emt 0:00:00]} e6 {[%emt 0:00:00]} 3. Nc3 {[%emt 0:00:00]} d5 {[%emt 0:00:05]} 4. cxd5 {[%emt 0:00:28]} exd5 {[%emt 0:00:09]} 5. Bg5 {[%emt 0:00:06]} Be7 {[%emt 0:00:21]} 6. e3 {[%emt 0:00:08]} c6 {[%emt 0:00:08]} 7. Bd3 {[%emt 0:00:10]} Nbd7 {[%emt 0:00:18]} 8. Qc2 {[%emt 0:00:38]} h6 {[%emt 0:00:26]} 9. Bh4 {[%emt 0:00:17]} Nh5 {[%emt 0:00:16]} 10. Bxe7 {[%emt 0:01:38]} Qxe7 {[%emt 0:00:18]} 11. Nf3 {[%emt 0:07:49]} Nf4 {[%emt 0:02:40]} 12. Bf1 {[%emt 0:02:33]} Nb6 {[%emt 0:03:12]} 13. Ne5 {[%emt 0:02:40]} Nh5 {[%emt 0:02:37]} 14. Bd3 {[%emt 0:04:08]} Nf6 {[%emt 0:01:42]} 15. O-O {[%emt 0:01:26]} O-O {[%emt 0:01:10]} 16. Rab1 {[%emt 0:06:16]} a5 {[%emt 0:02:58]} 17. a3 {[%emt 0:03:56]} Nbd7 {[%emt 0:06:05]} 18. Nxd7 {[%emt 0:05:36]} Nxd7 {[%emt 0:00:59]} 19. Na4 {[%emt 0:02:36]} Qd8 {[%emt 0:06:26]} 20. Rfc1 {[%emt 0:14:51]} Re8 {[%emt 0:03:07]} 21. Bf5 {[%emt 0:01:25]} Nb6 {[%emt 0:01:15]} 22. Nxb6 {[%emt 0:02:46]} Bxf5 {[%emt 0:01:34]} 23. Qxf5 {[%emt 0:00:11]} Qxb6 {[%emt 0:00:18]} 24. b4 {[%emt 0:00:26]} axb4 {[%emt 0:02:22]} 25. axb4 {[%emt 0:00:29]} Re6 {[%emt 0:05:57]} 26. Qc2 {[%emt 0:07:26]} Rf6 {[%emt 0:11:26]} 27. g3 {[%emt 0:08:47]} Qb5 {[%emt 0:07:20]} 28. Ra1 {[%emt 0:05:14]} Re8 {[%emt 0:02:37]} 29. Qd2 {[%emt 0:00:26]} b6 {[%emt 0:01:58]} 30. Ra7 {[%emt 0:01:37]} h5 {[%emt 0:02:14]} 31. h4 {[%emt 0:02:21]} g6 {[%emt 0:01:33]} 32. Rc2 {[%emt 0:02:18]} Rfe6 {[%emt 0:05:20]} 33. Rb2 {[%emt 0:03:43]} Re4 {[%emt 0:03:35]} 34. Ra3 {[%emt 0:03:10]} Rc8 {[%emt 0:07:06]} 35. Qd3 {[%emt 0:00:46]} Qxd3 {[%emt 0:00:36]} 36. Rxd3 {[%emt 0:00:01]} Re7 {[%emt 0:02:06]} 37. Rc3 {[%emt 0:02:54]} Rec7 {[%emt 0:01:05]} 38. Kf1 {[%emt 0:01:30]} Kf8 {[%emt 0:00:06]} 39. Ke2 {[%emt 0:00:13]} Ke7 {[%emt 0:01:39]} 40. Ra2 {[%emt 0:00:15]} c5 {[%emt 0:01:38]} 41. bxc5 {[%emt 0:00:39]} bxc5 {[%emt 0:00:05]} 42. dxc5 {[%emt 0:01:47]} Rxc5 {[%emt 0:00:13]} 43. Rxc5 {[%emt 0:01:22]} Rxc5 {[%emt 0:00:10]} 1/2-1/2

[Event "CZE-ch U16 2020"]
[Site "Kouty nad Desnou"]
[Date "2020.03.07"]
[Round "1.5"]
[White "Nytra, Ondrej"]
[Black "Volak, Simon"]
[Result "1-0"]
[ECO "B92"]
[WhiteElo "2181"]
[BlackElo "1937"]
[Annotator "ChessBase"]
[PlyCount "169"]
[EventDate "2020.03.07"]
[EventCountry "CZE"]
[SourceTitle "playchess.com"]
[Source "ChessBase"]
[SourceQuality "1"]
[TimeControl "5400+30"]

1. e4 {[%emt 0:00:00]} c5 {[%emt 0:00:00]} 2. Nf3 {[%emt 0:00:00]} d6 {[%emt 0:00:00]} 3. d4 {[%emt 0:00:00]} cxd4 {[%emt 0:00:02]} 4. Nxd4 {[%emt 0:00:00]} Nf6 {[%emt 0:00:08]} 5. Nc3 {[%emt 0:00:00]} a6 {[%emt 0:00:15]} 6. Be2 {[%emt 0:00:01]} e5 {[%emt 0:00:32]} 7. Nb3 {[%emt 0:00:05]} Be7 {[%emt 0:00:22]} 8. O-O {[%emt 0:00:07]} O-O {[%emt 0:00:22]} 9. Kh1 {[%emt 0:00:08]} Nbd7 {[%emt 0:03:22]} 10. Be3 {[%emt 0:01:32]} Qc7 {[%emt 0:01:48]} 11. a4 {[%emt 0:01:45]} b6 {[%emt 0:05:14]} 12. f3 {[%emt 0:01:32]} Bb7 {[%emt 0:00:44]} 13. Rf2 {[%emt 0:01:36]} Rfd8 {[%emt 0:06:43]} 14. Bf1 {[%emt 0:04:15]} Nc5 {[%emt 0:08:12]} 15. Rd2 {[%emt 0:00:49]} Rac8 {[%emt 0:14:53]} 16. Nc1 {[%emt 0:02:21]} Ne6 {[%emt 0:06:07]} 17. N1a2 {[%emt 0:03:49]} d5 {[%emt 0:18:16]} 18. exd5 {[%emt 0:01:05]} Nd4 {[%emt 0:01:19]} 19. Bxd4 {[%emt 0:03:47]} exd4 {[%emt 0:00:06]} 20. Rxd4 {[%emt 0:00:27]} Qe5 {[%emt 0:08:53]} 21. f4 {[%emt 0:05:31]} Qe3 {[%emt 0:08:09]} 22. d6 {[%emt 0:08:34]} Rxd6 {[%emt 0:13:41]} 23. Rd3 {[%emt 0:26:12]} Qxf4 {[%emt 0:01:14]} 24. Be2 {[%emt 0:01:20]} Rcd8 {[%emt 0:00:40]} 25. Nc1 {[%emt 0:00:38]} h6 {[%emt 0:00:47]} 26. Qg1 {[%emt 0:00:17]} Ng4 {[%emt 0:00:34]} 27. Bxg4 {[%emt 0:01:12]} Qxg4 {[%emt 0:00:04]} 28. Rg3 {[%emt 0:01:10]} Qf5 {[%emt 0:00:18]} 29. Nd3 {[%emt 0:00:18]} Bg5 {[%emt 0:01:09]} 30. Rf1 {[%emt 0:00:31]} Qe6 {[%emt 0:00:24]} 31. Re1 {[%emt 0:00:46]} Qf6 {[%emt 0:00:40]} 32. a5 {[%emt 0:00:54]} bxa5 {[%emt 0:00:29]} 33. Nc5 {[%emt 0:00:15]} Rb6 {[%emt 0:00:30]} 34. b3 {[%emt 0:12:35]} Qc6 {[%emt 0:00:30]} 35. Rg4 {[%emt 0:07:56]} Bc8 {[%emt 0:00:31]} 36. Rc4 {[%emt 0:00:26]} Qg6 {[%emt 0:00:29]} 37. N3e4 {[%emt 0:00:36]} Rb4 {[%emt 0:00:24]} 38. Rc3 {[%emt 0:02:03]} Rbd4 {[%emt 0:00:35]} 39. Nxg5 {[%emt 0:03:05]} hxg5 {[%emt 0:00:24]} 40. Nd3 {[%emt 0:01:56]} f6 {[%emt 0:00:37]} 41. Rxc8 {[%emt 0:02:19]} Rxd3 {[%emt 0:00:00]} 42. Qc5 {[%emt 0:00:00]} Rd2 {[%emt 0:00:00]} 43. Rxd8+ {[%emt 0:00:00]} Rxd8 {[%emt 0:00:00]} 44. Qxa5 {[%emt 0:00:00]} Rd6 {[%emt 0:00:00]} 45. Qc7 {[%emt 0:00:00]} f5 {[%emt 0:00:00]} 46. c4 {[%emt 0:00:00]} Kh7 {[%emt 0:00:00]} 47. Qc8 {[%emt 0:00:00]} Rc6 {[%emt 0:00:00]} 48. Qd8 {[%emt 0:00:00]} Rd6 {[%emt 0:02:18]} 49. Qa8 {[%emt 0:00:00]} Re6 {[%emt 0:01:55]} 50. Rd1 {[%emt 0:00:00]} Rd6 {[%emt 0:00:47]} 51. Rc1 {[%emt 0:00:00]} Qe6 {[%emt 0:00:28]} 52. Qf3 {[%emt 0:00:00]} Kg6 {[%emt 0:00:33]} 53. Qc3 {[%emt 0:00:00]} Qd7 {[%emt 0:00:23]} 54. Qe1 {[%emt 0:00:00]} Re6 {[%emt 0:00:13]} 55. Qf1 {[%emt 0:00:00]} Qc6 {[%emt 0:00:46]} 56. b4 {[%emt 0:00:00]} Qb6 {[%emt 0:00:34]} 57. c5 {[%emt 0:00:00]} Qc6 {[%emt 0:00:30]} 58. Qd3 {[%emt 0:00:00]} Rf6 {[%emt 0:00:29]} 59. Rd1 {[%emt 0:00:00]} Qa4 {[%emt 0:00:33]} 60. Rc1 {[%emt 0:00:00]} Qc6 {[%emt 0:00:06]} 61. h3 {[%emt 0:00:00]} Kh6 {[%emt 0:00:39]} 62. Re1 {[%emt 0:00:00]} Kg6 {[%emt 0:00:41]} 63. Qc4 {[%emt 0:00:00]} Kh7 {[%emt 0:00:30]} 64. Re7 {[%emt 0:02:16]} f4 {[%emt 0:00:28]} 65. Qd3+ {[%emt 0:00:59]} Kh6 {[%emt 0:00:26]} 66. Qd8 {[%emt 0:04:31]} Kg6 {[%emt 0:00:31]} 67. Qg8 {[%emt 0:00:55]} Kf5 {[%emt 0:00:14]} 68. Rxg7 {[%emt 0:00:24]} Ke5 {[%emt 0:00:47]} 69. Rxg5+ {[%emt 0:00:22]} Kd4 {[%emt 0:00:07]} 70. Qb3 {[%emt 0:01:58]} Qe6 {[%emt 0:00:35]} 71. Qb2+ {[%emt 0:02:44]} Kd3 {[%emt 0:00:25]} 72. Rg4 {[%emt 0:00:46]} Rf5 {[%emt 0:00:38]} 73. Qb1+ {[%emt 0:00:46]} Kc3 {[%emt 0:00:50]} 74. Kh2 {[%emt 0:03:36]} Kd2 {[%emt 0:00:32]} 75. Qb2+ {[%emt 0:00:28]} Kd3 {[%emt 0:00:15]} 76. Qc1 {[%emt 0:00:45]} Qe5 {[%emt 0:00:29]} 77. c6 {[%emt 0:00:44]} f3+ {[%emt 0:00:43]} 78. Rg3 {[%emt 0:00:05]} Ke2 {[%emt 0:00:23]} 79. Qc2+ {[%emt 0:00:53]} Ke1 {[%emt 0:00:23]} 80. c7 {[%emt 0:03:42]} f2 {[%emt 0:00:36]} 81. Qb1+ {[%emt 0:00:52]} Ke2 {[%emt 0:00:24]} 82. Qd3+ {[%emt 0:00:08]} Ke1 {[%emt 0:00:17]} 83. c8=Q {[%emt 0:00:26]} f1=N+ {[%emt 0:00:47]} 84. Kg1 {[%emt 0:00:12]} Qf4 {[%emt 0:00:40]} 85. Qcc3+ {[%emt 0:00:21]} 1-0

[Event "CZE-ch U16 2020"]
[Site "Kouty nad Desnou"]
[Date "2020.03.07"]
[Round "1.6"]
[White "Jares, Michal"]
[Black "Gnojek, Petr"]
[Result "1/2-1/2"]
[ECO "B09"]
[WhiteElo "1907"]
[BlackElo "2129"]
[Annotator "ChessBase"]
[PlyCount "89"]
[EventDate "2020.03.07"]
[EventCountry "CZE"]
[SourceTitle "playchess.com"]
[Source "ChessBase"]
[SourceQuality "1"]
[TimeControl "5400+30"]

1. e4 {[%emt 0:00:00]} d6 {[%emt 0:00:03]} 2. d4 {[%emt 0:00:00]} Nf6 {[%emt 0:00:04]} 3. Nc3 {[%emt 0:00:04]} g6 {[%emt 0:00:07]} 4. f4 {[%emt 0:01:10]} Bg7 {[%emt 0:00:12]} 5. Nf3 {[%emt 0:00:55]} O-O {[%emt 0:00:22]} 6. Bd3 {[%emt 0:01:22]} Nc6 {[%emt 0:00:33]} 7. O-O {[%emt 0:07:41]} e5 {[%emt 0:01:42]} 8. d5 {[%emt 0:09:23]} Ne7 {[%emt 0:00:11]} 9. fxe5 {[%emt 0:16:23]} dxe5 {[%emt 0:00:06]} 10. Nxe5 {[%emt 0:01:45]} c6 {[%emt 0:00:05]} 11. Bg5 {[%emt 0:11:28]} cxd5 {[%emt 0:00:09]} 12. Kh1 {[%emt 0:10:35]} Qb6 {[%emt 0:37:43]} 13. Qf3 {[%emt 0:13:14]} dxe4 {[%emt 0:06:41]} 14. Nxe4 {[%emt 0:10:05]} Nxe4 {[%emt 0:04:41]} 15. Bxe7 {[%emt 0:04:09]} Nd2 {[%emt 0:00:33]} 16. Nc4 {[%emt 0:00:37]} Qe6 {[%emt 0:01:42]} 17. Nxd2 {[%emt 0:01:03]} Qxe7 {[%emt 0:00:05]} 18. c3 {[%emt 0:02:51]} Be6 {[%emt 0:00:46]} 19. Nb3 {[%emt 0:03:20]} f5 {[%emt 0:05:07]} 20. Rae1 {[%emt 0:02:56]} Qf7 {[%emt 0:00:50]} 21. Na5 {[%emt 0:00:49]} Bd5 {[%emt 0:11:21]} 22. Qxd5 {[%emt 0:00:31]} Qxd5 {[%emt 0:00:04]} 23. Bc4 {[%emt 0:00:05]} Qxc4 {[%emt 0:00:32]} 24. Nxc4 {[%emt 0:00:01]} Rad8 {[%emt 0:00:25]} 25. Kg1 {[%emt 0:01:13]} b5 {[%emt 0:02:23]} 26. Na5 {[%emt 0:00:41]} Rd6 {[%emt 0:04:21]} 27. Nb3 {[%emt 0:00:33]} a5 {[%emt 0:01:36]} 28. Rd1 {[%emt 0:00:33]} Rfd8 {[%emt 0:02:21]} 29. Rxd6 {[%emt 0:00:27]} Rxd6 {[%emt 0:00:03]} 30. Nxa5 {[%emt 0:00:29]} Ra6 {[%emt 0:00:13]} 31. Nb7 {[%emt 0:00:31]} Rxa2 {[%emt 0:00:07]} 32. Rb1 {[%emt 0:00:32]} Bf8 {[%emt 0:02:53]} 33. b4 {[%emt 0:00:31]} Rc2 {[%emt 0:05:03]} 34. Rd1 {[%emt 0:00:31]} Bh6 {[%emt 0:01:54]} 35. Rd5 {[%emt 0:00:27]} Be3+ {[%emt 0:00:17]} 36. Kf1 {[%emt 0:00:08]} Rf2+ {[%emt 0:00:10]} 37. Ke1 {[%emt 0:00:06]} Rxg2 {[%emt 0:00:04]} 38. Rd3 {[%emt 0:01:17]} Bf4 39. Nc5 {[%emt 0:00:30]} Kf7 {[%emt 0:04:02]} 40. Rd7+ {[%emt 0:00:24]} Kf6 {[%emt 0:00:04]} 41. Rxh7 {[%emt 0:00:00]} Bd2+ {[%emt 0:00:00]} 42. Kf1 {[%emt 0:00:00]} Rg4 {[%emt 0:00:00]} 43. Rc7 {[%emt 0:00:00]} Ke5 {[%emt 0:00:00]} 44. Nd3+ {[%emt 0:00:00]} Kd6 {[%emt 0:00:00]} 45. Rc5 {[%emt 0:00:00]} 1/2-1/2

[Event "CZE-ch U16 2020"]
[Site "Kouty nad Desnou"]
[Date "2020.03.07"]
[Round "1.7"]
[White "Rokos, Filip"]
[Black "Vantuch, Lucian"]
[Result "0-1"]
[ECO "B43"]
[WhiteElo "2127"]
[BlackElo "1891"]
[Annotator "ChessBase"]
[PlyCount "98"]
[EventDate "2020.03.07"]
[EventCountry "CZE"]
[SourceTitle "playchess.com"]
[Source "ChessBase"]
[SourceQuality "1"]
[TimeControl "5400+30"]

1. e4 {[%emt 0:00:00]} c5 {[%emt 0:00:00]} 2. Nf3 {[%emt 0:00:00]} e6 {[%emt 0:00:00]} 3. d4 {[%emt 0:00:00]} cxd4 {[%emt 0:00:00]} 4. Nxd4 {[%emt 0:00:00]} a6 {[%emt 0:00:00]} 5. Nc3 {[%emt 0:00:00]} Qc7 {[%emt 0:00:01]} 6. g3 {[%emt 0:00:00]} b5 {[%emt 0:01:26]} 7. Bg2 {[%emt 0:00:59]} Bb7 {[%emt 0:00:15]} 8. O-O {[%emt 0:00:06]} d6 {[%emt 0:04:49]} 9. Re1 {[%emt 0:00:51]} Be7 {[%emt 0:01:32]} 10. Qh5 {[%emt 0:02:38]} Qc4 {[%emt 0:13:35]} 11. Nxe6 {[%emt 0:26:50]} g6 {[%emt 0:21:52]} 12. Ng7+ {[%emt 0:32:48]} Kf8 {[%emt 0:00:13]} 13. Qd1 {[%emt 0:00:39]} Kxg7 {[%emt 0:01:34]} 14. Be3 {[%emt 0:00:45]} Qc7 {[%emt 0:17:33]} 15. g4 {[%emt 0:05:42]} h6 {[%emt 0:12:20]} 16. f4 {[%emt 0:01:08]} Kh7 {[%emt 0:06:51]} 17. Nd5 {[%emt 0:01:46]} Qc6 {[%emt 0:04:44]} 18. Bd4 {[%emt 0:05:59]} f6 {[%emt 0:03:57]} 19. e5 {[%emt 0:03:15]} dxe5 {[%emt 0:05:18]} 20. fxe5 {[%emt 0:02:38]} fxe5 {[%emt 0:00:16]} 21. Rxe5 {[%emt 0:02:59]} Bc5 {[%emt 0:02:12]} 22. Ne3 {[%emt 0:00:30]} Bxd4 {[%emt 0:01:24]} 23. Bxc6 {[%emt 0:00:05]} Nxc6 24. Qf3 {[%emt 0:06:22]} Bxe5 {[%emt 0:01:24]} 25. Qf7+ {[%emt 0:00:50]} Bg7 26. Qxb7 {[%emt 0:00:54]} Re8 {[%emt 0:00:05]} 27. Nd5 {[%emt 0:00:51]} Nd4 {[%emt 0:00:45]} 28. Rf1 {[%emt 0:00:35]} Rd8 {[%emt 0:01:19]} 29. b3 {[%emt 0:02:43]} Rd6 {[%emt 0:00:31]} 30. c4 {[%emt 0:00:37]} g5 {[%emt 0:00:30]} 31. Rf7 {[%emt 0:01:15]} Rg6 {[%emt 0:00:27]} 32. Kf2 {[%emt 0:00:57]} Nc6 {[%emt 0:00:15]} 33. cxb5 {[%emt 0:01:04]} axb5 {[%emt 0:00:04]} 34. Qxb5 {[%emt 0:00:17]} Ne5 {[%emt 0:00:14]} 35. Rc7 {[%emt 0:00:30]} Nxg4+ {[%emt 0:00:14]} 36. Kg3 {[%emt 0:00:10]} N4f6 {[%emt 0:00:20]} 37. a4 {[%emt 0:00:33]} Nxd5 {[%emt 0:00:12]} 38. Qxd5 {[%emt 0:00:05]} Nf6 {[%emt 0:00:12]} 39. Qf7 {[%emt 0:00:55]} Ne4+ {[%emt 0:00:40]} 40. Kg2 {[%emt 0:00:32]} Rd8 {[%emt 0:01:01]} 41. Qf3 {[%emt 0:00:00]} Rd2+ {[%emt 0:00:00]} 42. Kg1 {[%emt 0:00:00]} Nf2 {[%emt 0:00:00]} 43. Qc3 {[%emt 0:00:00]} Ra2 {[%emt 0:00:00]} 44. Rf7 {[%emt 0:00:00]} g4 {[%emt 0:00:00]} 45. Qc1 {[%emt 0:00:00]} g3 {[%emt 0:01:29]} 46. hxg3 {[%emt 0:00:00]} Rxg3+ {[%emt 0:00:06]} 47. Kf1 {[%emt 0:00:00]} Nh3 {[%emt 0:00:53]} 48. Rxg7+ {[%emt 0:00:00]} Rxg7 {[%emt 0:00:11]} 49. Qb1+ {[%emt 0:00:00]} Kg8 {[%emt 0:00:11]} 0-1